Cogmind - Beta 12 @@@ ROGUE MODE // 2023.03.12 @ 03:38:06 // Winter2019/RPGLIKE Player: Wayland Result: Destroyed by H-77 Assassin with Coil Gun Performance ------------- Evolutions (6) 3000 Regions Visited (15) 3000 Robots Destroyed (46) 230 Value Destroyed (2079) 2079 Prototype IDs (3) 60 Alien Tech Used (0) 0 Bonus (1884) 1884 TOTAL SCORE: 10253 Bonus ------- Pacifist 470 High Alert Combat Kills 134 Follower Combat Kills 80 Entered Garrisons 200 Used RIF Installer 500 Entered DSFs 500 Cogmind --------- Core Integrity 0/1000 Matter 300/300 Energy 350/350 System Corruption 1% Temperature Cool (0) Movement Flying (31) Location -4/Armory Parts ------- > --- POWER (2) -------- Enhanced Nuclear Core Micro Fission Core > --- PROPULSION (5) --- Cooled VTOL Module Field Propulsion Drive Nuclear Pulse Array Impulse Thruster > --- UTILITY (6) ------ Melee Analysis Suite Microactuators Improved Actuator Array ECM Suite Improved Hacking Suite Improved System Shield > --- WEAPON (3) ------- Power Sword Power Sword Force Lance > --- INVENTORY (2) ---- Cooled VTOL Module Cooled Nuclear Pulse Thruster Peak State ------------ > --- POWER ------------ Enhanced Nuclear Core Light Quantum Reactor > --- PROPULSION ------- Cooled VTOL Module Cooled VTOL Module Field Propulsion Drive Cooled Nuclear Pulse Thruster Impulse Thruster > --- UTILITY ---------- Advanced Coolant Injector Melee Analysis Suite Improved Actuator Array ECM Suite Improved Hacking Suite Improved System Shield > --- WEAPON ----------- Power Sword Power Sword Force Lance > --- INVENTORY -------- Micro Nuclear Core Microactuators [Rating: 87] Favorites ----------- Power Micro Nuclear Core Engine Light Deuterium Engine Power Core Micro Nuclear Core Reactor Light Quantum Reactor Propulsion Flight Unit Leg Aluminum Leg Flight Unit Flight Unit Utility Melee Analysis Suite Device ECM Suite Processor Melee Analysis Suite Hackware Relay Coupler [Swarmer] Weapon Power Sword Ballistic Gun Assault Rifle Impact Weapon Hammer Slashing Weapon Power Sword Piercing Weapon Force Lance Special Melee Weapon Improved Datajack Build | -11 -10 -9 -8 -8 -8 -7 -6 -6 -5 -5 -5 -5 -5 -4 -4 ------- Run | Jun Mat Mat Mat Sto Gar Fac Fac DSF Fac Was Fac Upp Upp Fac Arm Slots Evolved 12 | . 4 . 2 . 2 1 1 . . . . . . 2 . Power 1 | . 1 . . . . . . . . . . . . . . Propulsion 4 | . 1 . 2 . . . 1 . . . . . . . . Utility 5 | . 1 . . . 2 . . . . . . . . 2 . Weapon 2 | . 1 . . . . 1 . . . . . . . . . Parts Attached 60 | . 5 . 10 2 8 10 1 4 1 . . . . 11 8 Power 10 | . . . 2 . 1 3 . . . . . . . 1 3 Engine 4 | . . . 2 . . 2 . . . . . . . . . Core 5 | . . . . . 1 1 . . . . . . . 1 2 Reactor 1 | . . . . . . . . . . . . . . . 1 Propulsion 17 | . 2 . 2 . 4 4 . . . . . . . 4 1 Treads . | . . . . . . . . . . . . . . . . Leg . | . . . . . . . . . . . . . . . . Wheel . | . . . . . . . . . . . . . . . . Hover . | . . . . . . . . . . . . . . . . Flight 17 | . 2 . 2 . 4 4 . . . . . . . 4 1 Utility 23 | . 3 . 5 1 2 2 . . 1 . . . . 5 4 Device 14 | . 2 . 4 1 . 1 . . 1 . . . . 1 4 Storage . | . . . . . . . . . . . . . . . . Processor 3 | . 1 . 1 . . 1 . . . . . . . . . Hackware 6 | . . . . . 2 . . . . . . . . 4 . Protection . | . . . . . . . . . . . . . . . . Artifact . | . . . . . . . . . . . . . . . . Weapon 10 | . . . 1 1 1 1 1 4 . . . . . 1 . Energy Gun . | . . . . . . . . . . . . . . . . Energy Cannon . | . . . . . . . . . . . . . . . . Ballistic Gun . | . . . . . . . . . . . . . . . . Ballistic Cannon . | . . . . . . . . . . . . . . . . Launcher . | . . . . . . . . . . . . . . . . Special Weapon . | . . . . . . . . . . . . . . . . Impact Weapon 1 | . . . . 1 . . . . . . . . . . . Slashing Weapon 4 | . . . . . 1 . . 3 . . . . . . . Piercing Weapon 1 | . . . . . . . . . . . . . . 1 . Special Melee Weapon 4 | . . . 1 . . 1 1 1 . . . . . . . Unidentified Prototypes 3 | . . . . . . 2 . . . . . . . 1 . Parts Lost 2 | . . . . . 2 . . . . . . . . . . Power . | . . . . . . . . . . . . . . . . Propulsion 1 | . . . . . 1 . . . . . . . . . . Utility 1 | . . . . . 1 . . . . . . . . . . Weapon . | . . . . . . . . . . . . . . . . Highest Loss Streak 1 | . . . . . 1 . . . . . . . . . . To Critical Strikes . | . . . . . . . . . . . . . . . . Average Slot Usage (%) 89 | . 68 64 78 99 88 91 83 89 92 92 92 92 92 94 94 Engine 7 | . 16 12 17 20 13 4 . . . . . . . . . Core 8 | . . . . . 3 10 14 14 14 14 14 14 14 11 12 Flight 29 | . 15 25 32 40 34 30 28 28 28 28 28 28 28 27 26 Device 9 | . 6 2 1 5 8 6 7 7 10 14 14 14 14 11 17 Processor 10 | . 6 12 12 14 8 7 14 14 14 14 14 14 14 12 6 Hackware 5 | . . . . . 4 15 7 7 3 . . . . 10 12 Ballistic Gun 1 | . 16 12 10 . . . . . . . . . . . . Impact Weapon 2 | . . . . 9 5 . . . . . . . . . . Slashing Weapon 9 | . . . . . 3 7 7 14 21 21 21 21 21 15 12 Piercing Weapon 1 | . . . . . . . . . . . . . . 2 6 Special Melee Weapon 3 | . . . 3 10 5 7 4 4 . . . . . . . Naked Turns . | . . . . . . . . . . . . . . . . Heaviest Build 36 | 7 15 15 17 16 17 22 22 25 27 27 27 27 27 30 36 Greatest Support 37 | 10 13 13 22 22 22 27 27 27 27 27 27 27 27 35 37 Greatest Overweight (x) 2 | . 2 1 . . . 2 . . . . . . . 1 . Average Overweight (x) . | . . . . . . . . . . . . . . . . Largest Inventory Capacity 2 | . 1 2 2 2 2 2 2 2 2 2 2 2 2 2 2 Average Capacity 1 | . . 1 2 2 2 2 2 2 2 2 2 2 2 2 2 Most Carried 2 | . 1 2 2 2 2 2 2 2 2 2 2 2 2 2 2 Average Carried 1 | . . 1 1 1 1 1 1 1 2 2 1 2 2 1 1 Final Capacity 2 | . 1 2 2 2 2 2 2 2 2 2 2 2 2 2 2 Final Carried 2 | . 1 2 2 2 2 1 1 2 2 2 2 2 2 2 2 Class Distribution -------------------- 73% | Hacker-Sprinter 15% | Sprinter 8% | Mutant Dominant Class ---------------- Mutant | -10/Materials Mutant | -9/Materials Sprinter | -8/Materials Sprinter | -8/Storage Hacker-Sprinter | -8/Garrison Hacker-Sprinter | -7/Factory Hacker-Sprinter | -6/Factory Hacker-Sprinter | -6/DSF Hacker-Sprinter | -5/Factory Hacker-Sprinter | -5/Waste Hacker-Sprinter | -5/Factory Hacker-Sprinter | -5/Upper Caves Hacker-Sprinter | -5/Upper Caves Hacker-Sprinter | -4/Factory Hacker-Sprinter | -4/Armory Resources | -11 -10 -9 -8 -8 -8 -7 -6 -6 -5 -5 -5 -5 -5 -4 -4 ----------- Run | Jun Mat Mat Mat Sto Gar Fac Fac DSF Fac Was Fac Upp Upp Fac Arm Matter Collected 743 | 200 . . 25 93 75 90 . . . 70 . . . 68 122 Remotely . | . . . . . . . . . . . . . . . . Salvage Created 1434 | . . . 25 381 287 162 . . . . . 177 98 33 271 Parts 93 | . . . 4 9 22 9 . . . . . 5 8 16 20 Haulers Intercepted . | . . . . . . . . . . . . . . . . Recyclers Shooed . | . . . . . . . . . . . . . . . . Parts Field Recycled 11 | . 10 . 1 . . . . . . . . . . . . Retrieved Matter 82 | . 67 . 15 . . . . . . . . . . . . Parts Self-Destructed 15 | . . . . . . . . . . . . 5 10 . . Prevented . | . . . . . . . . . . . . . . . . Kills | -11 -10 -9 -8 -8 -8 -7 -6 -6 -5 -5 -5 -5 -5 -4 -4 ------- Run | Jun Mat Mat Mat Sto Gar Fac Fac DSF Fac Was Fac Upp Upp Fac Arm Combat Hostiles Destroyed 40 | . . . 3 8 12 2 . . . . . 3 3 3 6 Melee 29 | . . . . 3 9 2 . . . . . 3 3 3 6 Guns 3 | . . . 3 . . . . . . . . . . . . Classes Destroyed 6 | . . . 1 2 1 1 . . . . . . . 1 . Worker 5 | . . . . . . 5 . . . . . . . . . Operator 1 | . . . . . . . . . . . . . . 1 . Swarmer 10 | . . . 3 . 5 2 . . . . . . . . . Grunt 19 | . . . . 7 3 . . . . . . 2 2 2 3 Sentry 7 | . . . . 1 2 . . . . . . 1 1 1 1 Programmer 4 | . . . . . 2 . . . . . . . . . 2 Best Kill Streak 7 | . . . 3 4 4 7 . . . . . 3 3 1 2 Combat Bots Only 4 | . . . 3 4 4 2 . . . . . 3 3 1 2 Max Kills in Single Turn 1 | . . . 1 1 1 1 . . . . . 1 1 1 1 Gunslinging . | . . . . . . . . . . . . . . . . Exploded . | . . . . . . . . . . . . . . . . Melee 1 | . . . . 1 1 1 . . . . . 1 1 1 1 Uniques/NPCs Destroyed . | . . . . . . . . . . . . . . . . Combat | -11 -10 -9 -8 -8 -8 -7 -6 -6 -5 -5 -5 -5 -5 -4 -4 -------- Run | Jun Mat Mat Mat Sto Gar Fac Fac DSF Fac Was Fac Upp Upp Fac Arm Damage Taken 3468 | . . . 44 277 1232 232 . 59 . 8 16 137 195 771 497 Core 2871 | . . . 39 225 1001 186 . 50 . 7 12 119 158 669 405 Absorbed by Shields 11 | . . . . . 11 . . . . . . . . . . Redirected to Core 2052 | . . . 18 182 761 158 . 32 . 3 12 62 125 371 328 Regen/Repaired (Parts) 87 | . . . . . . . . . . . . . . 47 40 Core Remaining (%) 64 | 100 100 100 . . 43 24 . 19 . . . . 64 . . Volleys Fired 10 | . 2 . 8 . . . . . . . . . . . . Largest 1 | . 1 . 1 . . . . . . . . . . . . Hottest 20 | . 20 . 20 . . . . . . . . . . . . Shots Fired 10 | . 2 . 8 . . . . . . . . . . . . Gun 10 | . 2 . 8 . . . . . . . . . . . . Cannon . | . . . . . . . . . . . . . . . . Launcher . | . . . . . . . . . . . . . . . . Special . | . . . . . . . . . . . . . . . . Kinetic 10 | . 2 . 8 . . . . . . . . . . . . Thermal . | . . . . . . . . . . . . . . . . Explosive . | . . . . . . . . . . . . . . . . Electromagnetic . | . . . . . . . . . . . . . . . . Robot Hit Streak 2 | . . . 2 . . . . . . . . . . . . Robot Miss Streak 2 | . 2 . 1 . . . . . . . . . . . . Penetration Max . | . . . . . . . . . . . . . . . . Secondary Targets . | . . . . . . . . . . . . . . . . Shots Hit Robots 150 | . . . 5 21 38 17 . . . . . 14 10 10 35 Core Hits 47 | . . . 3 4 8 6 . . . . . 4 4 6 12 Critical Kills . | . . . . . . . . . . . . . . . . Critical Parts Destroyed 12 | . . . . 7 5 . . . . . . . . . . Critical Strikes 27 | . . . . 7 6 . . . . . . 3 3 1 7 Smash 12 | . . . . 7 5 . . . . . . . . . . Sever 10 | . . . . . 1 . . . . . . 3 3 1 2 Impale 5 | . . . . . . . . . . . . . . . 5 Melee Attacks 236 | . . . . 44 72 21 . . . . 2 16 12 28 41 Impact 92 | . . . . 44 48 . . . . . . . . . . Slashing 94 | . . . . . 24 14 . . . . 2 16 12 10 16 Piercing 43 | . . . . . . . . . . . . . . 18 25 Sneak Attacks 8 | . . . . . . 7 . . . . . 1 . . . Combat Hostiles 1 | . . . . . . . . . . . . 1 . . . Follow-up Attacks 22 | . . . . . . . . . . . . 5 3 1 13 Damage Inflicted 6007 | . . . 64 559 1583 895 . . . . . 609 407 526 1364 Guns 64 | . . . 64 . . . . . . . . . . . . Cannons . | . . . . . . . . . . . . . . . . Explosions . | . . . . . . . . . . . . . . . . Melee 5943 | . . . . 559 1583 895 . . . . . 609 407 526 1364 Ramming . | . . . . . . . . . . . . . . . . Kinetic 64 | . . . 64 . . . . . . . . . . . . Thermal . | . . . . . . . . . . . . . . . . Explosive . | . . . . . . . . . . . . . . . . Electromagnetic . | . . . . . . . . . . . . . . . . Impact 1423 | . . . . 559 864 . . . . . . . . . . Slashing 3265 | . . . . . 719 895 . . . . . 609 407 104 531 Piercing 1255 | . . . . . . . . . . . . . . 422 833 Highest Corruption 1 | . . . . . . 1 . . . . . . . . 1 Average Corruption 1 | . . . . . . 1 . . . . . . . . 1 Corruption Purged . | . . . . . . . . . . . . . . . . Corruption Blocked . | . . . . . . . . . . . . . . . . Effects 1 | . . . . . . . . . . . . . . . 1 Message Errors 1 | . . . . . . . . . . . . . . . 1 Overload Shots . | . . . . . . . . . . . . . . . . Overflow Damage 667 | . . . . 203 190 89 . . . . . 73 28 5 79 Projectiles . | . . . . . . . . . . . . . . . . Explosions . | . . . . . . . . . . . . . . . . Melee 667 | . . . . 203 190 89 . . . . . 73 28 5 79 Knockbacks 6 | . . . . 4 2 . . . . . . . . . . Impact 5 | . . . . 3 2 . . . . . . . . . . Kinetic . | . . . . . . . . . . . . . . . . Secondary 1 | . . . . 1 . . . . . . . . . . . Self-Inflicted Damage . | . . . . . . . . . . . . . . . . Shots . | . . . . . . . . . . . . . . . . Rammed . | . . . . . . . . . . . . . . . . Targets Rammed . | . . . . . . . . . . . . . . . . Kicked . | . . . . . . . . . . . . . . . . Crushed . | . . . . . . . . . . . . . . . . Highest Temperature 69 | . . . 20 69 23 7 . . . . 3 . 12 43 . Average Temperature 22 | . . . 8 29 9 4 . . . . 3 . 12 19 . Received Heat Transfer 832 | . . . 9 162 288 18 . . . . 9 36 54 187 69 Siege Activations . | . . . . . . . . . . . . . . . . Robots Corrupted . | . . . . . . . . . . . . . . . . Combat Hostiles . | . . . . . . . . . . . . . . . . Parts Fried 9 | . . . . 5 4 . . . . . . . . . . Impact Corruptions 15 | . . . . 7 8 . . . . . . . . . . Robots Melted . | . . . . . . . . . . . . . . . . Combat Hostiles . | . . . . . . . . . . . . . . . . Parts Melted . | . . . . . . . . . . . . . . . . Heat Transferred . | . . . . . . . . . . . . . . . . Parts Sabotaged . | . . . . . . . . . . . . . . . . Parts Stolen . | . . . . . . . . . . . . . . . . Parts Stripped . | . . . . . . . . . . . . . . . . Power Chain Reactions . | . . . . . . . . . . . . . . . . Missiles Intercepted . | . . . . . . . . . . . . . . . . Alert | -11 -10 -9 -8 -8 -8 -7 -6 -6 -5 -5 -5 -5 -5 -4 -4 ------- Run | Jun Mat Mat Mat Sto Gar Fac Fac DSF Fac Was Fac Upp Upp Fac Arm Peak Influence 833 | . 43 67 194 385 833 586 221 154 80 103 38 . . 176 272 Initial 436 | . . 17 27 81 117 436 218 154 80 28 . . . 72 86 Average 245 | . 16 39 100 250 523 486 218 154 80 38 20 . . 76 145 Maximum Alert Level 3 | . . . . 1 3 2 1 . . . . . . . 1 Low Security (%) 54 | 100 100 100 100 25 8 . . 100 100 100 100 . . 100 81 Level 1 17 | . . . . 74 15 . 100 . . . . . . . 18 Level 2 24 | . . . . . 58 100 . . . . . . . . . Level 3 3 | . . . . . 17 . . . . . . . . . . Level 4 . | . . . . . . . . . . . . . . . . Level 5 . | . . . . . . . . . . . . . . . . High Security . | . . . . . . . . . . . . . . . . Max Security . | . . . . . . . . . . . . . . . . Squads Dispatched 8 | . . . . 2 . 3 . 1 . . 2 . . . . Investigation 5 | . . . . 1 . 2 . . . . 2 . . . . Extermination . | . . . . . . . . . . . . . . . . Reinforcement 3 | . . . . 1 . 1 . 1 . . . . . . . Assault . | . . . . . . . . . . . . . . . . Garrison . | . . . . . . . . . . . . . . . . Intercept . | . . . . . . . . . . . . . . . . Searches Triggered . | . . . . . . . . . . . . . . . . Construction Impeded . | . . . . . . . . . . . . . . . . Haulers Reinforced 1 | . . . . . . 1 . . . . . . . . . Active Scanning Responses . | . . . . . . . . . . . . . . . . Cargo Convoy Interrupts . | . . . . . . . . . . . . . . . . Stealth | -11 -10 -9 -8 -8 -8 -7 -6 -6 -5 -5 -5 -5 -5 -4 -4 --------- Run | Jun Mat Mat Mat Sto Gar Fac Fac DSF Fac Was Fac Upp Upp Fac Arm Distress Signals 4 | . . . 1 . . 2 . . . . . . . 1 . Communications Jammed . | . . . . . . . . . . . . . . . . Distress Signals . | . . . . . . . . . . . . . . . . Times Spotted 160 | . 4 3 10 21 31 21 1 4 . 7 4 7 8 33 6 Peak Tracking Total 13 | . 2 4 6 8 7 4 1 3 . 5 4 4 4 13 3 Tactical Retreats 27 | . . . 1 3 6 6 . 1 . 1 1 1 2 5 . Traps | -11 -10 -9 -8 -8 -8 -7 -6 -6 -5 -5 -5 -5 -5 -4 -4 ------- Run | Jun Mat Mat Mat Sto Gar Fac Fac DSF Fac Was Fac Upp Upp Fac Arm Traps Triggered 9 | . . . . . 5 1 2 . 1 . . . . . . Indirectly . | . . . . . . . . . . . . . . . . Trap Hack Attempts . | . . . . . . . . . . . . . . . . Triggered . | . . . . . . . . . . . . . . . . Disarmed . | . . . . . . . . . . . . . . . . Reprogrammed . | . . . . . . . . . . . . . . . . Reused . | . . . . . . . . . . . . . . . . Traps Extracted . | . . . . . . . . . . . . . . . . Installed . | . . . . . . . . . . . . . . . . Triggered . | . . . . . . . . . . . . . . . . Machines | -11 -10 -9 -8 -8 -8 -7 -6 -6 -5 -5 -5 -5 -5 -4 -4 ---------- Run | Jun Mat Mat Mat Sto Gar Fac Fac DSF Fac Was Fac Upp Upp Fac Arm Machines Disabled 6 | . . . . 1 4 . . . . . . . . 1 . Max in Single Turn 1 | . . . . 1 1 . . . . . . . . 1 . Garrison Access 2 | . . . . . . 1 1 . . . . . . . . Garrison Relay 1 | . . . . . 1 . . . . . . . . . . Machines Repaired . | . . . . . . . . . . . . . . . . Machines Sabotaged . | . . . . . . . . . . . . . . . . Overloaded Fab Kills . | . . . . . . . . . . . . . . . . Hacking | -11 -10 -9 -8 -8 -8 -7 -6 -6 -5 -5 -5 -5 -5 -4 -4 --------- Run | Jun Mat Mat Mat Sto Gar Fac Fac DSF Fac Was Fac Upp Upp Fac Arm Machines Accessed 27 | . 1 1 1 7 1 6 2 . . . 3 . . 4 1 Terminals 20 | . 1 1 1 6 1 5 1 . . . 3 . . 1 . Fabricators . | . . . . . . . . . . . . . . . . Repair Stations 4 | . . . . . . . . . . . . . . 3 1 Recycling Units . | . . . . . . . . . . . . . . . . Scanalyzers . | . . . . . . . . . . . . . . . . Garrison Access 3 | . . . . 1 . 1 1 . . . . . . . . Total Hacks 83 | . 6 3 6 16 2 19 3 . . . 14 . . 9 5 Successful 39 | . 3 1 3 8 1 3 3 . . . 6 . . 7 4 Failed 44 | . 3 2 3 8 1 16 . . . . 8 . . 2 1 Catastrophic 10 | . . 1 . 3 1 3 . . . . 1 . . 1 . Database Lockouts . | . . . . . . . . . . . . . . . . Manual 41 | . 6 3 4 7 . 15 . . . . 6 . . . . Terminals 67 | . 6 3 6 14 2 18 1 . . . 14 . . 3 . Fabricators . | . . . . . . . . . . . . . . . . Repair Stations 11 | . . . . . . . . . . . . . . 6 5 Recycling Units . | . . . . . . . . . . . . . . . . Scanalyzers . | . . . . . . . . . . . . . . . . Garrison Access 5 | . . . . 2 . 1 2 . . . . . . . . Terminal Hacks 21 | . 2 . 2 7 1 2 1 . . . 5 . . 1 . Open Door 2 | . . . . 2 . . . . . . . . . . . Open DSF 1 | . . . . . . . 1 . . . . . . . . Level Access Points 1 | . 1 . . . . . . . . . . . . . . Branch Access Points 3 | . . . 1 1 . . . . . . 1 . . . . Emergency Access Points 2 | . . . . . 1 . . . . . 1 . . . . Terminal Index 1 | . . . 1 . . . . . . . . . . . . Alert Level 1 | . . . . 1 . . . . . . . . . . . Unreport Threat 7 | . 1 . . 2 . 1 . . . . 2 . . 1 . Recall Reinforcements 1 | . . . . . . 1 . . . . . . . . . Hauler Manifests 1 | . . . . . . . . . . . 1 . . . . Registered Components 1 | . . . . 1 . . . . . . . . . . . Fabricator Hacks . | . . . . . . . . . . . . . . . . Repair Station Hacks 10 | . . . . . . . . . . . . . . 6 4 Scan Component 5 | . . . . . . . . . . . . . . 3 2 Repair 5 | . . . . . . . . . . . . . . 3 2 Recycling Unit Hacks . | . . . . . . . . . . . . . . . . Scanalyzer . | . . . . . . . . . . . . . . . . Garrison Access Hacks 4 | . . . . 1 . 1 2 . . . . . . . . Unlock Access 1 | . . . . 1 . . . . . . . . . . . Seal Access 2 | . . . . . . 1 1 . . . . . . . . Coupler Status 1 | . . . . . . . 1 . . . . . . . . Unauthorized Hacks 4 | . 1 1 1 . . . . . . . 1 . . . . Terminals 4 | . 1 1 1 . . . . . . . 1 . . . . Assimilate 2 | . . 1 . . . . . . . . 1 . . . . Botnet 2 | . 1 . 1 . . . . . . . . . . . . Fabricators . | . . . . . . . . . . . . . . . . Repair Stations . | . . . . . . . . . . . . . . . . Recycling Units . | . . . . . . . . . . . . . . . . Scanalyzers . | . . . . . . . . . . . . . . . . Garrison Access . | . . . . . . . . . . . . . . . . Data Cores Recovered 1 | . . . . . . . . . . . . . . 1 . Used 1 | . . . . . . . . . . . . . . 1 . Hacking Detections 22 | . 1 1 1 5 1 5 2 . . . 3 . . 3 . Full Trace Events 5 | . . . . 1 . 2 . . . . 2 . . . . Feedback Events 1 | . . . . . . 1 . . . . . . . . . Corruption 1 | . . . . . . 1 . . . . . . . . . Feedback Blocked . | . . . . . . . . . . . . . . . . Robot Schematics Acquired . | . . . . . . . . . . . . . . . . Robots Built . | . . . . . . . . . . . . . . . . Authchips . | . . . . . . . . . . . . . . . . Time . | . . . . . . . . . . . . . . . . Total Robot Build Rating . | . . . . . . . . . . . . . . . . Part Schematics Acquired . | . . . . . . . . . . . . . . . . Parts Built . | . . . . . . . . . . . . . . . . Authchips . | . . . . . . . . . . . . . . . . Time . | . . . . . . . . . . . . . . . . Total Part Build Rating . | . . . . . . . . . . . . . . . . Parts Repaired 5 | . . . . . . . . . . . . . . 3 2 Time 229 | . . . . . . . . . . . . . . 70 159 Parts Recycled . | . . . . . . . . . . . . . . . . Recycled Matter . | . . . . . . . . . . . . . . . . Retrieved Matter . | . . . . . . . . . . . . . . . . Retrieved Components . | . . . . . . . . . . . . . . . . Parts Scanalyzed . | . . . . . . . . . . . . . . . . Part Schematics Acquired . | . . . . . . . . . . . . . . . . Parts Damaged . | . . . . . . . . . . . . . . . . Bothacking | -11 -10 -9 -8 -8 -8 -7 -6 -6 -5 -5 -5 -5 -5 -4 -4 ------------ Run | Jun Mat Mat Mat Sto Gar Fac Fac DSF Fac Was Fac Upp Upp Fac Arm Used RIF Installer 1 | . . . . . 1 . . . . . . . . . . Robots Hacked 3 | . . . . . . 3 . . . . . . . . . Non-combat 1 | . . . . . . 1 . . . . . . . . . Combat 2 | . . . . . . 2 . . . . . . . . . Robot Hacks Applied 5 | . . . . . . 5 . . . . . . . . . parse_system 1 | . . . . . . 1 . . . . . . . . . no_distress 2 | . . . . . . 2 . . . . . . . . . streamctrl_high 2 | . . . . . . 2 . . . . . . . . . Relay Couplers Released 4 | . . . . . 4 . . . . . . . . . . Machine Destruction 2 | . . . . . 2 . . . . . . . . . . Programmers 2 | . . . . . 2 . . . . . . . . . . Attached 2 | . . . . . 2 . . . . . . . . . . Fabnet Peak Effective % . | . . . . . . . . . . . . . . . . Robots Rewired 1 | . . . . . . 1 . . . . . . . . . Allies Hacked . | . . . . . . . . . . . . . . . . Hacks Repelled . | . . . . . . . . . . . . . . . . Allies | -11 -10 -9 -8 -8 -8 -7 -6 -6 -5 -5 -5 -5 -5 -4 -4 -------- Run | Jun Mat Mat Mat Sto Gar Fac Fac DSF Fac Was Fac Upp Upp Fac Arm Total Allies 24 | . . 1 . . . 3 . . . 20 . . . . . Largest Group 19 | . . 1 1 . . 1 . . . 19 . . . . . Highest-Rated Group 702 | . . 10 10 . . 21 . . . 702 . . . . . Highest-Rated Ally 50 | . . 10 10 . . 21 . . . 50 . . . . . Total Orders 2 | . . . 1 . . 1 . . . . . . . . . STAY 1 | . . . 1 . . . . . . . . . . . . GUARD 1 | . . . . . . 1 . . . . . . . . . Ally Attacks 98 | . . . . . . 5 . . . 93 . . . . . Total Damage 4029 | . . . . . . 114 . . . 3915 . . . . . Kills 12 | . . . . . . 1 . . . 11 . . . . . Allies Corrupted . | . . . . . . . . . . . . . . . . Allies Melted . | . . . . . . . . . . . . . . . . Intel | -11 -10 -9 -8 -8 -8 -7 -6 -6 -5 -5 -5 -5 -5 -4 -4 ------- Run | Jun Mat Mat Mat Sto Gar Fac Fac DSF Fac Was Fac Upp Upp Fac Arm Robot Analysis Total . | . . . . . . . . . . . . . . . . Derelict Logs Recovered 2 | . . . . . . . . . . . . 1 1 . . Drone Launches . | . . . . . . . . . . . . . . . . Drone Recoveries . | . . . . . . . . . . . . . . . . Exploration | -11 -10 -9 -8 -8 -8 -7 -6 -6 -5 -5 -5 -5 -5 -4 -4 ------------- Run | Jun Mat Mat Mat Sto Gar Fac Fac DSF Fac Was Fac Upp Upp Fac Arm Turns Passed 2847 | 5 137 66 157 286 514 300 81 26 17 139 105 205 138 310 361 Spaces Moved 4581 | 5 127 145 212 324 675 626 158 64 52 267 308 618 362 523 115 Core 11 | . 2 . . . . 9 . . . . . . . . . Treads . | . . . . . . . . . . . . . . . . Legs 35 | 5 30 . . . . . . . . . . . . . . Wheels . | . . . . . . . . . . . . . . . . Hover . | . . . . . . . . . . . . . . . . Flight 4535 | . 95 145 212 324 675 617 158 64 52 267 308 618 362 523 115 Fastest Speed 25 | 120 37 37 29 29 29 28 28 28 28 28 28 28 28 25 26 Average Speed 30 | 120 86 40 32 29 29 30 28 28 28 28 28 28 28 27 27 Slowest Speed 150 | 120 150 117 37 29 32 150 28 28 28 28 28 28 28 100 31 Overloaded Moves . | . . . . . . . . . . . . . . . . Propulsion Burnouts . | . . . . . . . . . . . . . . . . Robots Hopped 15 | . . . 2 5 7 . . . . . . . . 1 . Cave-ins Triggered . | . . . . . . . . . . . . . . . . Exploration Rate (%) 34 | 2 26 22 24 54 79 23 5 70 3 76 10 83 50 14 9 Regions Visited 15 Branch Regions 4 Pre-discovered Areas . | . . . . . . . . . . . . . . . . Known Exits Taken 9 | . 1 . 1 1 . 1 1 . . . 1 1 1 1 . Unknown Exits Taken 2 | 1 . 1 . . . . . . . . . . . . . Scrap Searched 5 | . . . . . . . . . . . . 4 1 . . Spaces Dug 35 | . . . . 10 4 3 . . . . 1 2 . 12 3 Terrain Destroyed 35 | . . . . 10 4 3 . . . . 1 2 . 12 3 Melee 35 | . . . . 10 4 3 . . . . 1 2 . 12 3 Projectile . | . . . . . . . . . . . . . . . . AOE . | . . . . . . . . . . . . . . . . Terrain Rammed . | . . . . . . . . . . . . . . . . Walls Destroyed . | . . . . . . . . . . . . . . . . Machines Disabled . | . . . . . . . . . . . . . . . . Actions | -11 -10 -9 -8 -8 -8 -7 -6 -6 -5 -5 -5 -5 -5 -4 -4 --------- Run | Jun Mat Mat Mat Sto Gar Fac Fac DSF Fac Was Fac Upp Upp Fac Arm Total 5647 | 4 151 152 288 433 852 709 194 72 54 330 325 637 389 658 399 Wait 574 | . 14 7 53 54 31 37 . . . 50 13 2 10 82 221 Move 4535 | 4 126 144 207 314 657 625 157 63 52 266 307 617 361 520 115 Hop 12 | . . . 2 4 5 . . . . . . . . 1 . Pick Up 33 | . 2 . 2 1 4 2 . 2 . . 2 . . 10 8 Fast Attach 21 | . 4 . 5 1 2 3 . 2 1 . . . . 1 2 Attach 19 | . 1 . 2 1 2 3 1 1 . . . . . 6 2 Detach 5 | . . 1 2 . . . 1 . . . . . . . 1 Swap 20 | . . . 3 . 4 4 . 1 . . . . . 4 4 Drop 43 | . 2 . 3 2 7 8 . 3 1 . 2 . . 5 10 Fire 10 | . 2 . 8 . . . . . . . . . . . . Melee 203 | . . . . 44 72 21 . . . . 1 11 7 22 25 Ram . | . . . . . . . . . . . . . . . . Kick . | . . . . . . . . . . . . . . . . Crush . | . . . . . . . . . . . . . . . . Escape Stasis 80 | . . . . . 45 . 35 . . . . . . . . Rewire 6 | . . . . . . 6 . . . . . . . . . Trap . | . . . . . . . . . . . . . . . . Miscellaneous 86 | . . . 1 12 23 . . . . 14 . 7 11 7 11 Route ------- -11/Junkyard -10/Materials (discovered 3 exits: *Mat x3) -9/Materials (discovered 2 exits: *Mat / [*Min]) -8/Materials (discovered 3 exits: *Fac / *Sto x2) -8/Storage (discovered 2 exits: Rec / Gar) -8/Garrison (discovered 2 exits: *Fac x2) -7/Factory -6/Factory -6/DSF -5/Factory -5/Waste -5/Factory (discovered 2 exits: *Upp x2) -5/Upper Caves -5/Upper Caves -4/Factory -4/Armory History --------- Turn | Location | Event 1 | -11/Junkyard | Discovered new exit (range 1) 6 | -11/Junkyard | Entered Materials 53 | -10/Materials | Upgraded with Power slot (x1) 53 | -10/Materials | Upgraded with Propulsion slot (x1) 53 | -10/Materials | Upgraded with Utility slot (x1) 53 | -10/Materials | Upgraded with Weapon slot (x1) 67 | -10/Materials | Identified exit to Materials 143 | -10/Materials | Entered another Materials area 145 | -9/Materials | Reached level 2 180 | -9/Materials | Discovered new exit (range 13) 197 | -9/Materials | Discovered new exit (range 16) 209 | -9/Materials | Entered another Materials area 209 | -8/Materials | Accompanied by 1 ally 211 | -8/Materials | Reached level 3 239 | -8/Materials | Identified exit to Storage 239 | -8/Materials | Upgraded with Propulsion slot (x2) 365 | -8/Materials | Discovered new exit (range 9) 366 | -8/Materials | Entered Storage 368 | -8/Storage | Reached level 4 513 | -8/Storage | Identified exit to Recycling 542 | -8/Storage | Build established: Sprinter 651 | -8/Storage | Identified exit to Garrison 652 | -8/Storage | Entered Garrison 654 | -8/Garrison | Reached level 5 676 | -8/Garrison | Upgraded with Utility slot (x1) 688 | -8/Garrison | Triggered checkpoint 698 | -8/Garrison | Discovered new exit (range 11) 718 | -8/Garrison | Triggered checkpoint 724 | -8/Garrison | Attempted to access garrison exit controls, blocked by remote lockdown 755 | -8/Garrison | Core integrity fell below 50% 992 | -8/Garrison | Triggered checkpoint 994 | -8/Garrison | Build established: Hacker-Sprinter 1004 | -8/Garrison | Installed Relay Interface Framework 1004 | -8/Garrison | Reached level 6 1010 | -8/Garrison | Garrison Relay disabled 1013 | -8/Garrison | Upgraded with Utility slot (x1) 1058 | -8/Garrison | Triggered checkpoint 1156 | -8/Garrison | Triggered checkpoint 1163 | -8/Garrison | Discovered new exit (range 9) 1166 | -8/Garrison | Entered Factory 1167 | -7/Factory | Core integrity fell below 50% 1168 | -7/Factory | Reached level 7 1168 | -7/Factory | Upgraded with Weapon slot (x1) 1420 | -7/Factory | Discovered new exit (range 13) 1466 | -7/Factory | Identified exit to Factory 1466 | -7/Factory | Entered another Factory area 1467 | -6/Factory | Core integrity fell below 50% 1468 | -6/Factory | Reached level 8 1479 | -6/Factory | Upgraded with Propulsion slot (x1) 1533 | -6/Factory | Spotted B-75 Beast 1546 | -6/Factory | Identified exit to DSF 1547 | -6/Factory | Entered DSF 1547 | -6/DSF | Reached level 9 1569 | -6/DSF | Additional patrols routed to DSF 1569 | -6/DSF | Discovered new exit (range 17) 1573 | -6/DSF | Core integrity fell below 20% 1573 | -6/DSF | Identified exit to Factory 1573 | -6/DSF | Entered Factory 1574 | -5/Factory | Core integrity fell below 50% 1574 | -5/Factory | Core integrity fell below 20% 1575 | -5/Factory | Reached level 10 1590 | -5/Factory | Sucked down chute 1590 | -5/Factory | Entered Waste 1591 | -5/Waste | Met a frightened Derelict 1593 | -5/Waste | Spotted C-40 Crusher 1593 | -5/Waste | Spotted C-40 Crusher 1624 | -5/Waste | Spotted C-40 Crusher 1634 | -5/Waste | Warlord forces began an assault 1639 | -5/Waste | Spotted C-40 Crusher 1641 | -5/Waste | Spotted C-40 Crusher 1646 | -5/Waste | Allies destroyed C-40 Crusher 1646 | -5/Waste | Spotted C-40 Crusher 1648 | -5/Waste | Discovered new exit (range 17) 1691 | -5/Waste | Allies destroyed C-40 Crusher 1729 | -5/Waste | Identified exit to Factory 1729 | -5/Waste | Entered Factory 1813 | -5/Factory | Identified exit to Upper Caves 1834 | -5/Factory | Entered Upper Caves 1836 | -5/Upper Caves | Reached level 11 1871 | -5/Upper Caves | Attracted the attention of an 0b10 checkpoint 1892 | -5/Upper Caves | Learned location of 1 exit from Factory 2024 | -5/Upper Caves | Discovered new exit (range 12) 2027 | -5/Upper Caves | Identified exit to Upper Caves 2039 | -5/Upper Caves | Entered another Upper Caves area 2057 | -5/Upper Caves | Discovered new exit (range 8) 2059 | -5/Upper Caves | Identified exit to Factory 2095 | -5/Upper Caves | Attracted the attention of an 0b10 checkpoint 2128 | -5/Upper Caves | Learned Factory emergency access door positions 2177 | -5/Upper Caves | Entered Factory 2178 | -4/Factory | Identified exit to Armory 2179 | -4/Factory | Reached level 12 2181 | -4/Factory | Upgraded with Utility slot (x1) 2210 | -4/Factory | Repaired ECM Suite 2220 | -4/Factory | Reached level 13 2242 | -4/Factory | Repaired Mic. Nuclear Core 2245 | -4/Factory | Upgraded with Utility slot (x1) 2283 | -4/Factory | Repaired Xenon Bombardment Thruster 2310 | -4/Factory | Spotted B-86 Titan 2350 | -4/Factory | Core integrity fell below 50% 2443 | -4/Factory | Core integrity fell below 20% 2487 | -4/Factory | Entered Armory 2563 | -4/Armory | Reached level 14 2671 | -4/Armory | Repaired Cld. Nuclear Pulse Thruster 2741 | -4/Armory | Repaired Cld. VTOL Module 2848 | -4/Armory | Destroyed by H-77 Assassin with Coil Gun Last Messages --------------- 02794_ Acquired 10 matter. 02815_ Power Sword follow-up attack on G-73 Enforcer. 02817_ G-73 Enforcer suffers critical hit (Impale). 02817_ G-73 Enforcer destroyed. 02822_ Transport Mainframe disabled. 02823_ Power Sword follow-up attack on G-67 Veteran. 02823_ G-67 Veteran destroyed. 02826_ Power Sword follow-up attack on G-67 Veteran. 02828_ HLSWZP,NS|VHZJAAT